bitfinex/quotes_SOLUSD_20241208
["timestamp","ask_amount","ask_price","bid_price","bid_amount"]
[1733635929282,23.776884,238.15,238.09,8.13928827]
[1733635929646,0.12549,238.14,238.09,8.13928827]
[1733635930289,1.6489,238.16,238.11,8.13928827]
[1733635930456,1.6489,238.16,238.12,8.13928827]
[1733635930982,1.6489,238.16,238.13,8.13928827]
[1733635931154,1.86071173,238.13,238.05,24.204]
[1733635931355,1.86071173,238.13,238.12,8.13928827]
[1733635937580,1.86071173,238.13,238.12,12.34328827]
[1733635938763,1.86071173,238.13,238.12,8.13928827]
[1733635943090,1.86071173,238.13,238.12,12.34328827]
[1733635944997,1.86071173,238.13,238.12,8.13928827]
[1733635945302,1.86071173,238.13,238.03,5.19621926]
[1733635945461,1.86071173,238.13,238.1,8.13928827]
[1733635945861,1.86071173,238.13,238.11,8.13928827]
[1733635946067,1.86071173,238.13,238.12,8.13928827]
[1733635947677,1.86071173,238.13,238.12,12.34328827]
[1733635948368,1.86071173,238.13,238.12,8.13928827]
[1733635948683,1.86071173,238.13,238.12,12.34328827]
[1733635949082,1.86071173,238.13,238.12,8.13928827]
[1733635955801,1.98620173,238.13,238.04,4.204]
[1733635955988,1.98620173,238.13,238.09,8.13928827]
[1733635956184,1.98620173,238.13,238.01,0.12549]
[1733635956387,1.98620173,238.13,238.09,8.13928827]
[1733635957606,0.12549,238.12,238.09,8.13928827]
[1733635957780,0.12549,238.12,238.1,12.34328827]
[1733635960673,0.12549,238.12,238.09,8.13928827]
[1733635961107,0.12549,238.12,238.03,20.0]
[1733635961288,0.12549,238.12,238.09,8.13928827]
[1733635965477,0.12549,238.12,238.11,8.13928827]
[1733635965681,0.12549,238.12,238.1,8.13928827]
[1733635967011,0.12549,238.12,238.04,4.204]
[1733635967205,0.12549,238.12,238.09,8.13928827]
[1733635967918,0.12549,238.12,238.1,12.34328827]
[1733635968284,0.12549,238.12,238.1,4.204]
[1733635969696,0.12549,238.12,238.1,8.13928827]
[1733635971798,0.12549,238.12,238.09,8.13928827]
[1733635972393,0.12549,238.12,238.1,8.13928827]
[1733635973688,0.12549,238.12,238.09,8.13928827]
[1733635976322,0.12549,238.12,238.03,20.0]
[1733635976613,0.12549,238.12,238.09,8.13928827]
[1733635977190,0.12549,238.12,238.08,8.13928827]
[1733635977447,0.25098,238.12,237.99,3.20331774]
[1733635977650,0.25098,238.1,238.04,8.13928827]
[1733635979636,0.25098,238.09,237.97,21.64415812]
[1733635979950,0.25098,238.09,238.02,8.13928827]
[1733635980318,0.25098,238.11,238.02,8.13928827]
[1733635980540,0.25098,238.09,238.02,8.13928827]
[1733635981740,0.25098,238.09,237.97,21.64415812]
[1733635981931,0.25098,238.09,238.02,8.13928827]
[1733635983829,0.25098,238.09,238.0,20.0]
[1733635984047,0.25098,238.09,238.02,8.13928827]
[1733635984327,0.25098,238.09,238.03,8.13928827]
[1733635984931,3.40671173,238.13,238.05,8.13928827]
[1733635985138,1.86071173,238.13,238.12,8.13928827]
[1733635986451,1.86071173,238.13,238.11,20.0]
[1733635986650,1.86071173,238.13,238.12,8.13928827]
[1733635987027,1.86071173,238.13,238.12,12.34328827]
[1733635988057,1.86071173,238.13,238.12,8.13928827]
[1733635990355,1.86071173,238.13,238.12,12.34328827]
[1733635992669,0.25098,238.19,238.12,12.34328827]
[1733635992870,0.25098,238.19,238.13,8.13928827]
[1733635993783,8.13928827,238.2,237.97,15.14616231]
[1733635993784,24.027864,238.13,237.97,15.14616231]
[1733635994084,0.25098,238.09,237.96,32.55715308]
[1733635994259,0.25098,238.09,238.03,8.13928827]
[1733635994459,0.25098,238.09,237.94,4.204]
[1733635994460,0.25098,238.07,237.94,4.204]
[1733635994676,0.25098,238.05,238.01,8.13928827]
[1733635995486,0.25098,238.06,238.01,8.13928827]
[1733635996486,0.25098,238.06,238.0,8.13928827]
[1733635997185,0.25098,238.06,237.99,8.13928827]
[1733635997186,8.39026827,238.06,237.99,8.13928827]
[1733635998661,0.25098,238.04,237.97,8.13928827]
[1733635998880,0.12549,238.03,237.97,8.13928827]
[1733635999689,0.25098,238.02,237.92,4.204]
[1733635999890,8.39026827,238.02,237.94,12.34328827]
[1733636000773,8.39026827,238.0,237.87,1.63882076]
[1733636001094,25.303584,238.01,237.89,8.13928827]
[1733636001095,8.39026827,237.97,237.89,8.13928827]
[1733636001480,0.25098,237.97,237.9,8.13928827]
[1733636002791,1.5267,238.01,237.95,8.13928827]
[1733636002960,1.5267,238.01,237.97,8.13928827]
[1733636003297,1.5267,238.01,237.99,8.13928827]
[1733636004970,1.5267,238.01,237.98,8.13928827]
[1733636005593,1.5267,238.01,237.95,8.13928827]
[1733636006972,1.5267,238.01,237.99,8.13928827]
[1733636007176,1.5267,238.01,237.91,20.0]
[1733636007385,1.5267,238.01,237.98,8.13928827]
[1733636009897,1.5267,238.01,237.97,8.13928827]
[1733636010079,1.5267,238.01,237.96,8.13928827]
[1733636010679,1.5267,238.01,237.95,8.13928827]
[1733636011094,1.5267,238.01,237.96,8.13928827]
[1733636011297,1.5267,238.01,237.97,8.13928827]
[1733636011909,1.5267,238.01,237.98,8.13928827]
[1733636012200,1.5267,238.01,237.99,8.13928827]
[1733636013868,6.2143,238.04,237.99,8.13928827]
[1733636015972,6.2143,238.04,237.98,8.13928827]
[1733636017586,0.12549,238.03,237.97,8.13928827]
[1733636017994,0.25098,238.03,237.97,8.13928827]
[1733636018728,0.25098,238.03,237.88,1.69288345]
[1733636018729,8.39026827,238.03,237.95,8.13928827]
[1733636019287,8.39026827,238.03,237.89,20.0]
[1733636019494,0.25098,238.03,237.96,8.13928827]
[1733636020198,0.25098,238.03,237.97,8.13928827]
[1733636020504,6.2143,238.04,237.99,8.13928827]
[1733636022078,6.2143,238.04,238.0,8.13928827]
[1733636022395,1.5138,238.06,238.02,8.13928827]
[1733636023377,1.5138,238.06,238.03,8.13928827]
[1733636028673,1.5138,238.06,237.95,1.633362]
[1733636028674,1.5138,238.06,237.99,20.0]
[1733636028899,1.5138,238.06,238.03,8.13928827]
[1733636029203,6.3056,238.1,238.04,8.13928827]
[1733636031683,6.3056,238.1,238.05,8.13928827]
[1733636035209,5.3056,238.1,238.05,8.13928827]
[1733636036089,5.3056,238.1,238.04,8.13928827]
[1733636038080,0.12549,238.09,238.04,8.13928827]
[1733636038303,0.25098,238.09,238.02,8.13928827]
[1733636038481,8.39026827,238.09,238.01,8.13928827]
[1733636040797,8.39026827,238.09,237.96,4.204]
[1733636040798,0.25098,238.09,238.02,8.13928827]
[1733636040994,24.027864,238.09,238.02,8.13928827]
[1733636041808,32.16715227,238.09,238.02,8.13928827]
[1733636042394,24.027864,238.06,237.99,20.0]
[1733636042612,0.12549,238.02,237.99,20.0]
[1733636043994,0.25098,238.02,237.95,8.13928827]
[1733636044499,0.25098,238.02,237.96,8.13928827]
[1733636045529,0.25098,238.02,237.91,4.204]
[1733636045530,9.97726827,238.02,237.94,8.13928827]
[1733636045823,0.12549,238.0,237.96,20.0]
[1733636046686,0.12549,238.01,237.96,20.0]
[1733636047630,0.25098,238.01,237.96,20.0]
[1733636048694,0.25098,238.01,237.91,20.0]
[1733636048995,0.25098,238.01,237.94,8.13928827]
[1733636049519,0.25098,238.01,237.95,8.13928827]
[1733636050323,0.25098,238.01,237.91,20.0]
[1733636050525,0.25098,238.01,237.95,8.13928827]
[1733636052831,0.12549,238.01,237.94,8.13928827]
[1733636053721,8.26477827,238.01,237.91,24.204]
[1733636053902,0.12549,238.01,237.94,8.13928827]
[1733636054230,0.12549,238.01,237.96,8.13928827]
[1733636055735,0.12549,238.01,237.95,8.13928827]
[1733636056253,0.12549,238.01,237.91,24.204]
[1733636056392,0.12549,238.01,237.94,8.13928827]
[1733636057535,0.12549,238.01,237.91,20.0]
[1733636057536,1.587,238.02,237.98,8.13928827]
[1733636060037,1.587,238.02,237.97,8.13928827]
[1733636062046,1.587,238.02,237.98,8.13928827]
[1733636063435,0.12549,238.01,237.9,20.0]
[1733636063824,0.12549,238.01,237.95,8.13928827]
[1733636064342,8.26477827,238.01,237.93,8.13928827]
[1733636065254,0.12549,237.99,237.93,8.13928827]
[1733636066033,0.12549,237.99,237.92,8.13928827]
[1733636067747,24.027864,237.99,237.92,8.13928827]
[1733636069147,8.26477827,237.94,237.8,1.5242]
[1733636069444,0.12549,237.92,237.86,8.13928827]
[1733636070239,0.12549,237.92,237.87,8.13928827]
[1733636070839,23.776884,238.0,237.91,8.13928827]
[1733636071050,1.5922,238.01,237.95,8.13928827]
[1733636071345,8.39026827,238.0,237.93,8.13928827]
[1733636071521,8.39026827,238.0,237.91,8.13928827]
[1733636071522,0.12549,237.98,237.91,8.13928827]
[1733636072643,0.12549,237.98,237.92,8.13928827]
[1733636073021,0.12549,237.98,237.87,20.0]
[1733636073250,0.12549,237.98,237.92,8.13928827]
[1733636074032,0.12549,237.98,237.91,8.13928827]
[1733636075548,32.04166227,237.98,237.91,8.13928827]
[1733636075751,8.26477827,237.96,237.84,20.0]
[1733636075931,0.12549,237.94,237.88,8.13928827]
[1733636077421,0.12549,237.95,237.88,8.13928827]
[1733636079250,8.39026827,237.97,237.89,8.13928827]
[1733636079549,0.12549,237.95,237.9,8.13928827]
[1733636079762,8.13928827,238.0,237.92,8.13928827]
[1733636079957,23.776884,238.0,237.94,8.13928827]
[1733636080245,0.12549,237.99,237.94,8.13928827]
[1733636080924,1.5922,238.01,237.95,8.13928827]
[1733636081126,1.5922,238.01,237.94,8.13928827]
[1733636081345,0.12549,238.0,237.94,8.13928827]
[1733636084632,0.12549,238.0,237.93,8.13928827]
[1733636089442,0.12549,238.0,237.95,8.13928827]
[1733636100049,1.5922,238.01,237.87,4.204]
[1733636100050,1.5922,238.01,237.89,10.509]
[1733636100250,10.5006,238.09,237.89,10.509]
[1733636100251,1.6495,238.06,238.0,8.13928827]
[1733636101073,1.6495,238.06,237.99,8.13928827]
[1733636101074,0.12549,238.05,237.99,8.13928827]
[1733636102155,32.04166227,238.05,237.98,8.13928827]
[1733636102363,0.12549,238.03,237.97,8.13928827]
[1733636102771,0.12549,238.04,237.98,8.13928827]
[1733636102969,0.12549,238.04,237.99,8.13928827]
[1733636103283,0.12549,238.04,238.0,8.13928827]
[1733636104783,23.902374,238.05,237.99,8.13928827]
[1733636105088,32.04166227,238.05,237.98,8.13928827]
[1733636107165,23.902374,238.05,237.99,8.13928827]
[1733636107365,0.12549,238.05,238.0,8.13928827]
[1733636107790,0.12549,238.05,237.99,8.13928827]
[1733636108390,9.78878827,238.06,238.0,8.13928827]
[1733636108391,1.6495,238.06,238.0,8.13928827]
[1733636108596,1.6495,238.06,238.01,8.13928827]
[1733636111006,1.6495,238.06,238.0,8.13928827]
[1733636111578,1.6495,238.06,238.02,8.13928827]
[1733636111894,1.6495,238.06,238.04,8.13928827]
[1733636112093,1.5981,238.11,238.05,8.13928827]
[1733636112283,0.12549,238.1,238.05,8.13928827]
[1733636112480,1.5981,238.11,238.07,8.13928827]
[1733636112697,1.5981,238.11,238.08,8.13928827]
[1733636112884,6.0692,238.14,238.09,8.13928827]
[1733636113826,0.12549,238.13,238.09,8.13928827]
[1733636114124,1.5981,238.17,238.1,8.13928827]
[1733636114279,9.73738827,238.17,238.1,8.13928827]
[1733636114785,8.13928827,238.16,238.09,8.13928827]
[1733636115191,8.13928827,238.11,237.97,1.5636]
[1733636115391,8.13928827,238.11,238.04,8.13928827]
[1733636115815,0.12549,238.11,238.05,8.13928827]
[1733636116134,0.12549,238.11,237.98,0.25098]
[1733636116135,8.26477827,238.11,237.98,0.25098]
[1733636116296,0.25098,238.14,238.05,8.13928827]
[1733636116496,0.12549,238.12,238.06,8.13928827]
[1733636116717,8.26477827,238.12,238.05,8.13928827]
[1733636118010,8.26477827,238.12,238.06,8.13928827]
[1733636118935,8.26477827,238.12,238.0,20.0]
[1733636119094,0.12549,238.1,238.04,8.13928827]
[1733636120435,0.12549,238.11,238.05,8.13928827]
[1733636122040,0.12549,238.11,238.06,8.13928827]
[1733636122938,8.26477827,238.11,238.05,8.13928827]
[1733636123233,0.12549,238.11,238.06,8.13928827]
[1733636124012,0.12549,238.09,238.04,8.13928827]
[1733636125937,0.12549,238.09,238.05,8.13928827]
[1733636126539,6.3766,238.11,238.06,8.13928827]
[1733636127615,0.12549,238.1,238.06,8.13928827]
[1733636129351,20.12549,238.16,238.08,8.13928827]
[1733636129641,7.9747,238.17,238.11,8.13928827]
[1733636130150,0.12549,238.16,238.11,8.13928827]
[1733636130743,7.9747,238.17,238.11,8.13928827]
[1733636131846,0.12549,238.16,238.11,8.13928827]
[1733636132642,0.12549,238.16,238.12,8.13928827]
[1733636134346,1.5981,238.17,238.12,8.13928827]
[1733636134530,1.5981,238.17,238.13,8.13928827]
[1733636135748,1.5981,238.17,238.12,8.13928827]
[1733636137159,1.5981,238.17,238.13,8.13928827]
[1733636137760,1.5981,238.17,238.12,8.13928827]
[1733636139057,1.5981,238.17,238.11,8.13928827]
[1733636139266,23.902374,238.11,237.94,1.5533]
[1733636139558,25.430974,238.09,238.02,8.13928827]
[1733636140478,25.430974,238.09,238.03,8.13928827]
[1733636145460,25.430974,238.09,238.02,8.13928827]
[1733636150567,33.57026227,238.09,238.02,8.13928827]
[1733636150737,25.430974,238.09,238.02,8.13928827]
[1733636150935,25.430974,238.09,238.03,8.13928827]
[1733636151561,25.430974,238.09,238.04,8.13928827]
[1733636152674,25.430974,238.09,238.03,8.13928827]
[1733636154479,8.13928827,238.07,237.94,1.68672888]
[1733636154785,0.12549,238.04,237.98,8.13928827]
[1733636155080,0.12549,238.05,238.0,8.13928827]
[1733636157461,1.5286,238.09,238.03,8.13928827]
[1733636158685,0.12549,238.08,238.03,8.13928827]
[1733636159193,1.5286,238.09,238.05,8.13928827]
[1733636159391,7.9113,238.15,238.08,8.13928827]
[1733636159696,7.9113,238.15,238.1,8.13928827]
[1733636159861,7.9113,238.15,238.12,8.13928827]
[1733636160067,7.9113,238.15,238.01,20.0]
[1733636160068,7.9113,238.15,238.11,8.13928827]
[1733636160562,1.6148,238.15,238.11,8.13928827]
[1733636161180,1.6148,238.15,238.12,8.13928827]
[1733636161571,8.13928827,238.19,238.12,8.13928827]
[1733636161572,0.12549,238.18,238.12,8.13928827]
[1733636162287,0.12549,238.19,238.13,8.13928827]
[1733636162598,23.902374,238.19,238.13,8.13928827]
[1733636163371,32.04166227,238.19,238.12,8.13928827]
[1733636163989,0.12549,238.17,238.11,8.13928827]
[1733636166091,0.12549,238.18,238.11,8.13928827]
[1733636166478,8.26477827,238.18,238.1,8.13928827]
[1733636166981,8.26477827,238.14,238.07,8.13928827]
[1733636167179,0.12549,238.12,238.07,8.13928827]
[1733636167583,10.4963,238.18,238.09,8.13928827]
[1733636167783,8.13928827,238.16,238.09,8.13928827]
[1733636168090,0.12549,238.15,238.09,8.13928827]
[1733636168298,0.12549,238.15,238.08,8.13928827]
[1733636168808,0.12549,238.14,238.08,8.13928827]
[1733636169700,0.12549,238.14,238.07,8.13928827]
[1733636169882,8.13928827,238.14,238.07,8.13928827]
[1733636170693,8.04323174,238.14,238.07,8.13928827]
[1733636170911,8.04323174,238.14,238.03,20.0]
[1733636171085,8.04323174,238.14,238.06,8.13928827]
[1733636172893,0.12549,238.13,238.06,8.13928827]
[1733636174087,0.12549,238.13,238.07,8.13928827]
[1733636177215,8.13928827,238.16,238.08,8.13928827]
[1733636177403,23.776884,238.15,238.08,8.13928827]
[1733636177791,0.12549,238.15,238.09,8.13928827]
[1733636178688,0.12549,238.16,238.1,8.13928827]
[1733636178914,8.1449,238.2,238.13,8.13928827]
[1733636179209,23.776884,238.19,238.13,8.13928827]
[1733636179588,8.1449,238.2,238.13,8.13928827]
[1733636179886,1.6148,238.2,238.15,8.13928827]
[1733636180087,1.6148,238.2,238.08,32.55715308]
[1733636180088,1.5026,238.25,238.19,8.13928827]
[1733636180300,1.5026,238.25,238.2,8.13928827]
[1733636180686,1.5026,238.25,238.19,8.13928827]
[1733636180887,8.13928827,238.23,238.16,8.13928827]
[1733636181188,8.13928827,238.21,238.14,8.13928827]
[1733636181387,8.13928827,238.21,238.13,8.13928827]
[1733636182200,8.13928827,238.21,238.14,8.13928827]
[1733636182517,23.902374,238.24,238.18,8.13928827]
[1733636187204,1.5026,238.25,238.19,8.13928827]
[1733636187394,1.5026,238.25,238.2,8.13928827]
[1733636187596,1.5026,238.25,238.21,8.13928827]
[1733636188490,0.12549,238.24,238.19,8.13928827]
[1733636188698,0.12549,238.24,238.18,8.13928827]
[1733636190698,0.12549,238.24,238.19,8.13928827]
[1733636191239,8.13928827,238.23,238.11,20.0]
[1733636191400,8.26477827,238.24,238.16,8.13928827]
[1733636192114,8.26477827,238.24,238.11,20.0]
[1733636192321,8.26477827,238.2,238.12,8.13928827]
[1733636192694,10.4942,238.23,238.05,1.6582]
[1733636192695,8.26477827,238.17,238.05,1.6582]
[1733636192914,8.26477827,238.17,238.09,8.13928827]
[1733636193108,0.12549,238.17,238.1,8.13928827]
[1733636194829,6.4431,238.21,238.14,8.13928827]
[1733636195599,0.12549,238.2,238.13,8.13928827]
[1733636195895,8.13928827,238.19,238.12,8.13928827]
[1733636196408,0.12549,238.18,238.12,8.13928827]
[1733636197134,0.12549,238.18,238.14,8.13928827]
[1733636197427,0.12549,238.19,238.14,8.13928827]
[1733636199203,0.12549,238.19,238.13,8.13928827]
[1733636200035,8.26477827,238.19,238.12,8.13928827]
[1733636200918,8.13928827,238.18,238.11,8.13928827]
[1733636206486,0.12549,238.17,238.11,8.13928827]
[1733636206635,25.454074,238.17,238.11,8.13928827]
[1733636213566,0.12549,238.16,238.02,12.19796623]
[1733636213750,23.902374,238.15,238.05,20.0]
[1733636213952,23.902374,238.15,238.08,8.13928827]
[1733636214876,8.26477827,238.14,238.01,20.0]
[1733636215074,23.776884,238.15,238.08,8.13928827]
[1733636215365,0.12549,238.14,238.09,8.13928827]
[1733636215742,0.12549,238.15,238.09,8.13928827]
[1733636219781,0.12549,238.15,238.1,8.13928827]
[1733636222973,0.12549,238.15,238.09,8.13928827]
[1733636225874,0.12549,238.15,238.1,8.13928827]
[1733636229160,0.12549,238.15,238.09,8.13928827]
[1733636232292,0.12549,238.15,238.1,8.13928827]
[1733636232649,0.12549,238.15,238.09,8.13928827]
[1733636232872,0.12549,238.15,238.08,8.13928827]
[1733636233384,0.12549,238.15,238.09,8.13928827]
[1733636233565,1.5517,238.17,238.13,8.13928827]
[1733636233768,1.5517,238.17,238.14,8.13928827]
[1733636234895,1.5517,238.17,238.13,8.13928827]
[1733636235078,23.902374,238.16,238.11,8.13928827]
[1733636235260,23.902374,238.16,238.1,8.13928827]
[1733636236571,23.776884,238.16,238.06,20.0]
[1733636236894,23.776884,238.16,238.11,8.13928827]
[1733636242273,1.5517,238.17,238.14,8.13928827]
[1733636242499,14.58238827,238.21,238.14,8.13928827]
[1733636242800,6.4431,238.21,238.14,8.13928827]
[1733636243003,6.4431,238.21,238.15,8.13928827]
[1733636243908,23.776884,238.2,238.15,8.13928827]
[1733636247208,23.776884,238.2,238.14,8.13928827]
[1733636250095,23.776884,238.2,238.15,8.13928827]
[1733636250296,1.5602,238.23,238.18,8.13928827]
[1733636250932,1.5602,238.23,238.19,8.13928827]
[1733636251114,1.5602,238.23,238.2,8.13928827]
[1733636252005,6.5556,238.27,238.2,8.13928827]
[1733636252328,8.26477827,238.26,238.19,8.13928827]
[1733636252621,8.13928827,238.25,238.18,8.13928827]
[1733636254112,8.26477827,238.24,238.08,34.16565308]
[1733636254309,8.13928827,238.23,238.11,20.0]
[1733636254590,8.13928827,238.23,238.16,8.13928827]
[1733636255323,23.776884,238.23,238.17,8.13928827]
[1733636255722,6.5556,238.27,238.22,8.13928827]
[1733636256429,6.5556,238.27,238.21,8.13928827]
[1733636257005,9.71778827,238.28,238.21,8.13928827]
[1733636257707,1.5785,238.28,238.22,8.13928827]
[1733636260623,8.13928827,238.25,238.18,8.13928827]
[1733636262617,23.902374,238.27,238.18,8.13928827]
[1733636262818,8.13928827,238.25,238.18,8.13928827]
[1733636263014,23.776884,238.24,238.17,8.13928827]
[1733636271313,23.776884,238.24,238.18,8.13928827]
[1733636271531,23.776884,238.26,238.19,8.13928827]
[1733636271842,23.776884,238.26,238.2,8.13928827]
[1733636272049,23.776884,238.26,238.14,20.0]
[1733636272050,31.91617227,238.26,238.18,8.13928827]
[1733636272905,31.91617227,238.26,238.19,8.13928827]
[1733636274013,0.12549,238.23,238.12,20.0]
[1733636274208,23.902374,238.23,238.16,8.13928827]
[1733636274428,23.902374,238.23,238.18,8.13928827]
[1733636275141,6.1542,238.24,238.18,8.13928827]
[1733636282755,0.12549,238.23,238.12,20.0]
[1733636282956,24.027864,238.23,238.15,8.13928827]
[1733636283465,32.16715227,238.23,238.15,8.13928827]
[1733636283763,24.027864,238.23,238.16,8.13928827]
[1733636286156,32.16715227,238.23,238.15,8.13928827]
[1733636287761,23.776884,238.21,238.15,8.13928827]
[1733636288265,32.16715227,238.23,238.15,8.13928827]
[1733636288438,32.16715227,238.23,238.16,8.13928827]
[1733636297467,32.16715227,238.23,238.09,20.0]
[1733636297645,32.16715227,238.23,238.16,8.13928827]
[1733636298442,32.16715227,238.23,238.11,20.0]
[1733636298644,23.902374,238.21,238.15,8.13928827]
[1733636299845,23.902374,238.21,238.14,8.13928827]
[1733636299846,25.364684,238.2,238.14,8.13928827]
[1733636302176,25.364684,238.2,238.16,8.13928827]
[1733636306476,1.5878,238.2,238.17,8.13928827]
[1733636307666,1.5878,238.2,238.16,8.13928827]
[1733636312496,1.5878,238.2,238.15,8.13928827]
[1733636316379,1.5878,238.2,238.16,8.13928827]
[1733636318004,1.5878,238.2,238.11,24.198]
[1733636318181,1.5878,238.2,238.11,20.0]
[1733636318503,1.5878,238.2,238.14,8.13928827]
[1733636318707,1.5878,238.2,238.06,10.5015]
[1733636318708,23.776884,238.19,238.09,20.0]
[1733636318870,23.776884,238.19,238.12,8.13928827]
[1733636319468,31.91617227,238.19,238.12,8.13928827]
[1733636320097,23.776884,238.19,238.13,8.13928827]
[1733636320299,23.776884,238.19,238.14,8.13928827]
[1733636325923,23.776884,238.19,238.13,8.13928827]
[1733636326388,23.776884,238.19,238.09,20.0]
[1733636326710,23.776884,238.19,238.13,8.13928827]
[1733636329610,31.91617227,238.19,238.13,8.13928827]
[1733636329921,31.91617227,238.19,238.08,20.0]
[1733636330122,31.91617227,238.19,238.13,8.13928827]
[1733636330289,23.776884,238.19,238.14,8.13928827]
[1733636333919,31.91617227,238.19,238.13,8.13928827]
[1733636334398,23.776884,238.19,238.14,8.13928827]
[1733636340821,23.776884,238.19,238.08,20.0]
[1733636341014,31.91617227,238.19,238.13,8.13928827]
[1733636341321,31.91617227,238.19,238.08,20.0]
[1733636341645,31.91617227,238.19,238.13,8.13928827]
[1733636342700,23.776884,238.19,238.13,8.13928827]
[1733636345699,8.13928827,238.18,238.05,6.1048]
[1733636345905,23.776884,238.15,238.09,8.13928827]
[1733636347603,23.776884,238.15,238.11,8.13928827]
[1733636347913,23.776884,238.16,238.11,8.13928827]
[1733636352723,23.776884,238.17,238.11,8.13928827]
[1733636355349,31.91617227,238.17,238.1,8.13928827]
[1733636355847,23.776884,238.15,238.1,8.13928827]
[1733636356048,23.776884,238.15,238.09,8.13928827]
[1733636356754,23.776884,238.15,238.01,4.198]
[1733636356755,31.91617227,238.15,238.08,8.13928827]
[1733636357049,31.91617227,238.15,238.07,8.13928827]
[1733636357050,23.776884,238.13,238.07,8.13928827]
[1733636358723,23.776884,238.13,238.08,8.13928827]
[1733636358917,23.776884,238.14,238.09,8.13928827]
[1733636359451,24.027864,238.15,238.09,8.13928827]
[1733636359824,23.776884,238.16,238.11,8.13928827]
[1733636360050,23.776884,238.16,238.12,8.13928827]
[1733636361526,23.776884,238.16,238.13,8.13928827]
[1733636361721,6.0759,238.17,238.12,8.13928827]
[1733636362136,6.0759,238.17,238.13,8.13928827]
[1733636362330,1.5878,238.2,238.13,8.13928827]
[1733636362545,1.5878,238.2,238.14,8.13928827]
[1733636363735,23.776884,238.19,238.14,8.13928827]
[1733636364047,23.776884,238.19,238.13,8.13928827]
[1733636364353,31.91617227,238.19,238.12,8.13928827]
[1733636365856,8.13928827,238.16,238.1,8.13928827]
[1733636366356,8.13928827,238.17,238.1,8.13928827]
[1733636372264,23.776884,238.19,238.11,8.13928827]
[1733636372443,8.13928827,238.18,238.11,8.13928827]
[1733636372839,23.776884,238.19,238.07,20.0]
[1733636373064,23.776884,238.17,238.11,8.13928827]
[1733636378050,23.776884,238.17,238.12,8.13928827]
[1733636378761,31.91617227,238.17,238.11,8.13928827]
[1733636381841,31.91617227,238.17,238.05,1.6622]
[1733636381842,8.13928827,238.16,238.1,8.13928827]
[1733636383069,8.13928827,238.17,238.1,8.13928827]
[1733636384186,23.776884,238.16,238.09,8.13928827]
[1733636385153,31.91617227,238.16,238.05,20.0]
[1733636385356,8.13928827,238.15,238.04,20.0]
[1733636385656,8.13928827,238.15,238.07,8.13928827]
[1733636386579,31.91617227,238.16,238.09,8.13928827]
[1733636387777,8.13928827,238.14,238.03,20.0]
[1733636387981,8.13928827,238.14,238.07,8.13928827]
[1733636392774,8.13928827,238.15,238.08,8.13928827]
[1733636392999,23.776884,238.14,238.08,8.13928827]
[1733636400196,31.91617227,238.14,238.07,8.13928827]
[1733636400400,1.6205,238.13,238.07,8.13928827]
[1733636400713,31.91617227,238.12,238.0,20.0]
[1733636400886,8.13928827,238.11,238.04,8.13928827]
[1733636401588,23.776884,238.1,238.04,8.13928827]
[1733636404019,23.776884,238.1,238.05,8.13928827]
[1733636404229,1.6205,238.13,238.06,8.13928827]
[1733636404524,1.6205,238.13,238.08,8.13928827]
[1733636405921,23.776884,238.12,238.06,8.13928827]
[1733636408114,23.776884,238.12,238.05,8.13928827]
[1733636409507,23.776884,238.12,238.07,8.13928827]
[1733636409939,23.776884,238.12,238.06,8.13928827]
[1733636413325,1.6205,238.13,238.07,8.13928827]
[1733636413533,1.6205,238.13,238.09,8.13928827]
[1733636416233,12.035,238.2,238.12,8.13928827]
[1733636416415,20.17428827,238.2,238.13,8.13928827]
[1733636416761,8.13928827,238.19,238.12,8.13928827]
[1733636417617,23.776884,238.18,238.12,8.13928827]
[1733636420942,31.91617227,238.19,238.12,8.13928827]
[1733636421146,31.91617227,238.19,238.13,8.13928827]
[1733636422750,8.13928827,238.18,238.12,8.13928827]
[1733636422931,8.13928827,238.18,238.11,8.13928827]
[1733636423640,31.91617227,238.17,238.05,20.0]
[1733636423842,8.13928827,238.14,238.07,8.13928827]
[1733636424048,8.13928827,238.12,238.0,4.197]
[1733636424278,8.13928827,238.12,238.05,8.13928827]
[1733636428063,23.776884,238.12,238.06,8.13928827]
[1733636428366,1.5441,238.13,238.08,8.13928827]
[1733636428560,1.5441,238.13,238.09,8.13928827]